Cogmind - Beta 15 @@@ ROGUE MODE // 2025.05.19 @ 21:14:23 Player: jumpy Result: Destroyed by S-10 Pest with Light Assault Rifle Performance ------------- Evolutions (0) 0 Regions Visited (2) 400 Robots Destroyed (20) 100 Value Destroyed (418) 418 Prototype IDs (0) 0 Alien Tech Used (0) 0 Bonus (0) 0 TOTAL SCORE: 918 Bonus ------- None Cogmind --------- Core Integrity 0/250 Matter 300/300 Energy 237/250 System Corruption 0% Temperature Cool (0) Movement Rolling (90) Location -10/Subcaves Parts ------- > --- POWER (1) -------- Ion Engine > --- PROPULSION (2) --- Wheel Compact Wheel > --- UTILITY (2) ------ Small Storage Unit Seismic Detector > --- WEAPON (2) ------- Beam Rifle > --- INVENTORY (8) ---- Visual Processing Unit Sensor Array Improved Terrain Scanner Seismic Detector Medium Laser Peak State ------------ > --- POWER ------------ Ion Engine > --- PROPULSION ------- Wheel Compact Wheel > --- UTILITY ---------- Small Storage Unit Seismic Detector > --- WEAPON ----------- Beam Rifle Assault Rifle > --- INVENTORY -------- Ion Engine Visual Processing Unit Sensor Array Improved Terrain Scanner Seismic Detector Medium Laser Medium Laser [Rating: 9] Favorites ----------- Power Ion Engine Engine Ion Engine Propulsion Light Treads Treads Light Treads Wheel Wheel Utility Small Storage Unit Device Seismic Detector Storage Small Storage Unit Weapon Assault Rifle Energy Gun Medium Laser Ballistic Gun Assault Rifle Build | -11 -10 -10 ------- Run | Yrd Mat Sub Slots Evolved . | . . . Power . | . . . Propulsion . | . . . Utility . | . . . Weapon . | . . . Parts Attached 14 | 7 3 4 Power 5 | 1 3 1 Engine 5 | 1 3 1 Core . | . . . Reactor . | . . . Propulsion 4 | 2 . 2 Treads 2 | 2 . . Leg . | . . . Wheel 2 | . . 2 Hover . | . . . Flight . | . . . Utility 2 | 2 . . Device 1 | 1 . . Storage 1 | 1 . . Processor . | . . . Hackware . | . . . Protection . | . . . Artifact . | . . . Weapon 3 | 2 . 1 Energy Gun 2 | 1 . 1 Energy Cannon . | . . . Ballistic Gun 1 | 1 . . Ballistic Cannon . | . . . Launcher . | . . . Special Weapon . | . . . Impact Weapon . | . . . Slashing Weapon . | . . . Piercing Weapon . | . . . Special Melee Weapon . | . . . Unidentified Prototypes . | . . . Parts Lost 4 | . 1 3 Power 1 | . 1 . Propulsion 2 | . . 2 Utility . | . . . Weapon 1 | . . 1 Highest Loss Streak 2 | . 1 2 To Critical Strikes . | . . . Average Backups 6 | 3 7 6 Power . | . . . Propulsion 1 | 1 2 . Utility 3 | . 3 4 Weapon . | . 1 1 Tool/Special . | . . . Unused Backups 7 | . 2 5 Power 2 | . 2 . Propulsion . | . . . Utility 4 | . . 4 Weapon 1 | . . 1 Tool/Special . | . . . Average Slot Usage (%) 98 | . 100 93 Engine 14 | . 14 14 Treads 22 | . 28 6 Wheel 5 | . . 19 Device 14 | . 14 14 Storage 14 | . 14 14 Energy Gun 14 | . 14 14 Ballistic Gun 12 | . 14 9 Peak Build Rating 9 | 7 8 9 Average Rating 7 | 5 7 7 On Entrance 5 | . 7 8 Naked Turns . | . . . Heaviest Build 16 | 15 15 16 Greatest Support 40 | 40 40 40 Greatest Overweight (x) . | . . . Average Overweight (x) . | . . . Largest Inventory Capacity 8 | 8 8 8 Average Capacity 7 | 7 8 8 Most Carried 8 | 6 8 8 Average Carried 6 | 3 7 5 Final Capacity 8 | 8 8 8 Final Carried 8 | 6 8 5 Class Distribution -------------------- 100% | Mutant Dominant Class ---------------- Mutant | -10/Materials Mutant | -10/Subcaves Resources | -11 -10 -10 ----------- Run | Yrd Mat Sub Matter Collected 511 | 289 119 103 Remotely . | . . . Salvage Created 768 | 91 474 203 Parts 45 | 7 25 13 Haulers Intercepted 1 | . 1 . Recyclers Shooed . | . . . Parts Field Recycled . | . . . Retrieved Matter . | . . . Parts Self-Destructed 13 | . . 13 Prevented . | . . . Kills | -11 -10 -10 ------- Run | Yrd Mat Sub Combat Hostiles Destroyed 13 | . 6 7 Guns 13 | . 6 7 Classes Destroyed 7 | 2 3 2 Worker 1 | . 1 . Tunneler 2 | 2 . . Hauler 1 | . 1 . Recycler 3 | 1 2 . Swarmer 4 | . . 4 Grunt 8 | . 6 2 Sentry 1 | . . 1 Best Kill Streak 3 | 2 2 3 Combat Bots Only 3 | . 2 3 Max Kills in Single Turn 1 | 1 1 1 Gunslinging . | . . . Exploded . | . . . Melee . | . . . Uniques/NPCs Destroyed . | . . . Combat | -11 -10 -10 -------- Run | Yrd Mat Sub Hostile Shots Fired 148 | . 30 118 Missed 44 | . 3 41 Hits 104 | . 27 77 Projectile 104 | . 27 77 Critical Strikes 1 | . . 1 Damage Taken 1070 | . 324 746 Core 253 | . 50 203 Absorbed by Shields . | . . . Core Remaining (%) 100 | 100 . . Volleys Fired 76 | 8 42 26 Largest 2 | 2 2 2 Hottest 70 | 70 70 70 Shots Fired 140 | 16 84 40 Gun 140 | 16 84 40 Cannon . | . . . Launcher . | . . . Special . | . . . Kinetic 64 | 8 42 14 Thermal 76 | 8 42 26 Explosive . | . . . Electromagnetic . | . . . Robot Hit Streak 9 | 5 9 7 Robot Miss Streak 4 | 3 4 4 Penetration Max . | . . . Secondary Targets 1 | . . 1 Max Gunslinging Chain 1 | . . 1 Shots Hit Robots 94 | 10 57 27 Core Hits 33 | 4 18 11 Critical Kills . | . . . Critical Parts Destroyed . | . . . Critical Strikes 5 | . 2 3 Burn 5 | . 2 3 Melee Attacks . | . . . Impact . | . . . Slashing . | . . . Piercing . | . . . Sneak Attacks . | . . . Combat Hostiles . | . . . Follow-up Attacks . | . . . Damage Inflicted 1250 | 127 698 425 Guns 1246 | 127 694 425 Cannons . | . . . Explosions . | . . . Melee . | . . . Ramming 4 | . 4 . Kinetic 538 | 51 341 146 Thermal 708 | 76 353 279 Explosive . | . . . Electromagnetic . | . . . Impact . | . . . Slashing . | . . . Piercing . | . . . Highest Corruption . | . . . Average Corruption . | . . . Corruption Purged . | . . . Corruption Blocked . | . . . Overload Shots . | . . . Overflow Damage . | . . . Projectiles . | . . . Explosions . | . . . Melee . | . . . Knockbacks . | . . . Impact . | . . . Kinetic . | . . . Secondary . | . . . Self-Inflicted Damage . | . . . Shots . | . . . Rammed 2 | . 2 . Targets Rammed 3 | . 3 . Kicked . | . . . Crushed 1 | . 1 . Highest Temperature 130 | 36 130 16 Average Temperature 42 | 15 48 8 Received Heat Transfer 474 | . 177 297 Siege Activations . | . . . Martial Activations . | . . . Shielding Activations . | . . . Robots Disrupted . | . . . Combat Hostiles . | . . . Robots Corrupted . | . . . Combat Hostiles . | . . . Parts Fried . | . . . Impact Corruptions . | . . . Robots Melted . | . . . Combat Hostiles . | . . . Parts Melted 1 | . 1 . Heat Transferred 2405 | 222 1184 999 Parts Sabotaged . | . . . Parts Stolen . | . . . Parts Stripped . | . . . Power Chain Reactions . | . . . Alert | -11 -10 -10 ------- Run | Yrd Mat Sub Maximum Alert Level . | . . . Low Security (%) 100 | 100 100 . Level 1 . | . . . Level 2 . | . . . Level 3 . | . . . Level 4 . | . . . Level 5 . | . . . High Security . | . . . Max Security . | . . . Peak Influence 56 | 10 56 . Initial . | . . . Average 9 | 1 11 . Influence Increases 443 | 15 163 265 Destroy 0b10 Robot/C 260 | . 120 140 Destroy 0b10 Robot/NC 35 | 15 20 . Destroy Leader 42 | . 22 20 Destroy Structure 1 | . 1 . Lose Combat Pursuer 105 | . . 105 Influence Decreases 303 | 15 163 125 Time Decay 278 | 15 163 100 Lost Part 25 | . . 25 Squads Dispatched 1 | . 1 . Investigation . | . . . Extermination . | . . . Reinforcement 1 | . 1 . Assault . | . . . Garrison . | . . . Intercept . | . . . Searches Triggered . | . . . Construction Impeded . | . . . Haulers Reinforced . | . . . Active Scanning Responses . | . . . Cargo Convoy Interrupts . | . . . Stealth | -11 -10 -10 --------- Run | Yrd Mat Sub Distress Signals 1 | . 1 . Communications Jammed . | . . . Distress Signals . | . . . Times Spotted 31 | . 14 17 Peak Tracking Total 6 | . 5 6 Tactical Retreats 2 | . . 2 Traps | -11 -10 -10 ------- Run | Yrd Mat Sub Traps Triggered . | . . . Indirectly . | . . . Trap Hack Attempts . | . . . Triggered . | . . . Disarmed . | . . . Reprogrammed . | . . . Reused . | . . . Traps Extracted . | . . . Installed . | . . . Triggered . | . . . Machines | -11 -10 -10 ---------- Run | Yrd Mat Sub Machines Disabled . | . . . Max in Single Turn . | . . . Machines Repaired . | . . . Machines Dismantled . | . . . Machines Sabotaged . | . . . Overloaded Fab Kills . | . . . Hacking | -11 -10 -10 --------- Run | Yrd Mat Sub Machines Accessed . | . . . Terminals . | . . . Fabricators . | . . . Repair Stations . | . . . Recycling Units . | . . . Scanalyzers . | . . . Garrison Access . | . . . Total Hacks . | . . . Successful . | . . . Failed . | . . . Catastrophic . | . . . Database Lockouts . | . . . Manual . | . . . Terminals . | . . . Fabricators . | . . . Repair Stations . | . . . Recycling Units . | . . . Scanalyzers . | . . . Garrison Access . | . . . Terminal Hacks . | . . . Fabricator Hacks . | . . . Repair Station Hacks . | . . . Recycling Unit Hacks . | . . . Scanalyzer . | . . . Garrison Access Hacks . | . . . Unauthorized Hacks . | . . . Terminals . | . . . Fabricators . | . . . Repair Stations . | . . . Recycling Units . | . . . Scanalyzers . | . . . Garrison Access . | . . . Data Cores Recovered . | . . . Used . | . . . Hacking Detections . | . . . Full Trace Events . | . . . Feedback Events . | . . . Feedback Blocked . | . . . Robot Schematics Acquired . | . . . Robots Built . | . . . Authchips . | . . . Time . | . . . Total Robot Build Rating . | . . . Part Schematics Acquired . | . . . Parts Built . | . . . Authchips . | . . . Time . | . . . Total Part Build Rating . | . . . Parts Repaired . | . . . Time . | . . . Parts Recycled . | . . . Recycled Matter . | . . . Retrieved Matter . | . . . Retrieved Components . | . . . Parts Scanalyzed . | . . . Part Schematics Acquired . | . . . Parts Damaged . | . . . Bothacking | -11 -10 -10 ------------ Run | Yrd Mat Sub Used RIF Installer . | . . . Robots Hacked . | . . . Non-combat . | . . . Combat . | . . . Robot Hacks Applied . | . . . Relay Couplers Released . | . . . Fabnet Peak Effective % . | . . . Robots Rewired . | . . . Allies Hacked . | . . . Hacks Repelled . | . . . Allies | -11 -10 -10 -------- Run | Yrd Mat Sub Total Allies . | . . . Largest Group . | . . . Highest-Rated Group . | . . . Highest-Rated Ally . | . . . Total Orders . | . . . Ally Attacks . | . . . Total Damage . | . . . Kills . | . . . Allies Corrupted . | . . . Allies Melted . | . . . Intel | -11 -10 -10 ------- Run | Yrd Mat Sub Active Infowar (turns) 1083 | 74 747 262 Seismic 1083 | 74 747 262 Robot Analysis Total . | . . . Derelict Logs Recovered . | . . . Drone Launches . | . . . Drone Recoveries . | . . . Exploration | -11 -10 -10 ------------- Run | Yrd Mat Sub Turns Passed 1182 | 173 747 262 Spaces Moved 548 | 86 267 195 Core 4 | 4 . . Treads 367 | 82 267 18 Legs . | . . . Wheels 177 | . . 177 Hover . | . . . Flight . | . . . Fastest Speed 50 | 50 160 90 Average Speed 136 | 154 160 96 Slowest Speed 160 | 160 160 160 Overloaded Moves . | . . . Propulsion Burnouts . | . . . Robots Hopped . | . . . Potential Cave-ins . | . . . Cave-ins Triggered . | . . . Exploration Rate (%) 26 | 7 53 18 Regions Visited 2 Branch Regions 1 Pre-discovered Areas 1 | . . 1 Known Exits Taken . | . . . Unknown Exits Taken 2 | 1 1 . Scrap Searched . | . . . Spaces Dug . | . . . Terrain Destroyed . | . . . Melee . | . . . Projectile . | . . . AOE . | . . . Terrain Rammed . | . . . Walls Destroyed . | . . . Machines Disabled . | . . . Actions | -11 -10 -10 --------- Run | Yrd Mat Sub Total 840 | 106 504 230 Wait 184 | . 181 3 Move 546 | 85 266 195 Hop . | . . . Pick Up 11 | 6 5 . Fast Attach 7 | 7 . . Attach 3 | . 1 2 Detach . | . . . Swap 4 | . 2 2 Drop 6 | . 4 2 Fire 76 | 8 42 26 Melee . | . . . Ram . | . . . Kick . | . . . Crush 3 | . 3 . Escape Stasis . | . . . Rewire . | . . . Trap . | . . . Miscellaneous . | . . . Route ------- -11/Scrapyard -10/Materials (discovered 3 exits: [*Mat] / [*Min] / [*Sub]) -10/Subcaves (discovered 1 exit: [*Rec]) History --------- Turn | Location | Event 3 | -11/Scrapyard | Discovered new exit (range 15) 174 | -11/Scrapyard | Entered Materials 295 | -10/Materials | Discovered new exit (range 13) 308 | -10/Materials | Build established: Mutant 735 | -10/Materials | Discovered new exit (range 16) 893 | -10/Materials | Discovered new exit (range 9) 921 | -10/Materials | Entered Subcaves 922 | -10/Subcaves | Approached by a straggling Scientist 978 | -10/Subcaves | Core integrity fell below 50% 1008 | -10/Subcaves | Learned location of Zion (-6) 1008 | -10/Subcaves | Met a Zionite searching for "candidates" 1078 | -10/Subcaves | A swath of the cavern ceiling suddenly collapsed 1097 | -10/Subcaves | Discovered new exit (range 12) 1138 | -10/Subcaves | Core integrity fell below 20% 1183 | -10/Subcaves | Destroyed by S-10 Pest with Light Assault Rifle Last Messages --------------- 01002_ Acquired 29 matter. 01004_ Heat Sink fries itself beyond repair. 01008_ F9-93T(z): "Hey you! It's really dangerous down here, I feel that you could die at any moment. For your health and safety might I suggest a trip to Zion?" World map updated: -6/Zion. 01009_ Acquired 10 matter. 01009_ Dropped Ion Engine. ON-RCW(c): "I think it's somewhere west of here" A swath of the cavern ceiling suddenly collapses. 01097_ S-10 Pest springs to life. 01097_ EXIT=FOUND 01098_ S-10 Pest destroyed. 01101_ Assault Rifle destroyed. 01111_ S-10 Pest destroyed. 01126_ S-10 Pest suffers critical hit (Burn). 01126_ S-10 Pest destroyed. 01131_ Flight Unit fries itself beyond repair. 01133_ Lgt. Assault Rifle fries itself beyond repair. 01172_ S-10 Pest destroyed. Map ----- +----------------------------------------------------+ | ?????????????????????????????????????????????????? | | ?????????????????????????????????????????????????? | | ?????????????????????????????????????????????????? | | ?????????????????????????????????????????????????? | | ?????????????????????????????????????????????????? | | ?????????????????????????????????????????????????? | | ?????????????????????????????????????????????????? | | ?????????????????????????????????????????????????? | | ????????????????????????? ??????????????????????? | | ????????????????????????? ?????????????????????## | | ????????????????????????? ?????????????????????# | | ????????????????????##?## #???????????????????## | | ???????????????????## ## ???????????????????# | | ???????????????????? ???????????????????## | | ???????????????????? ###????????????????## | | ????????????????????# ##???????????????# | | ???????????????????## #??????????????## " | | ???????????????????# ####???????????#"""" | | ???????????????????# ##??????????# """ | | ???????????????????# #????##????# "" | | ???????????????????# ######<###?#"### | | ????????????????????# ?#"""" """?#"??# | | ???????????????????## #????#" " " ?##??# | | ?????????????????### #?????#" ????## | | ??????????# = ss ##?#### ???### | | ???????????# =%* "#####@ #?# ## ??##" # | | ???????????# #???????## ### ##" ??#=""# | | ?????????????????????????# #### ####%##" | | ?????????????????????????# % " !###" | | ?????????????????????????# ## """""""# | | ?????????????????????????# #### ## "##"""" | | ?????????????????????????## #?## ## "#"### | | ?????????????????????????## ##?# ?# "###?? | | ?????????????????????????# #?# #?# ###???? | | ?????????????????????????## ##??# ### ##????? | | ??????????????????????????# #?## ## ###??? | | ?????????????????????????## ### #??? | | ?????????????????????????# ### % #??? | | ?????????????????????????# # ## #??? | | ?????????????????????????## # % ###### ##??? | | ??????????????????????????# %##?#### ##??? | | ??????????????????????????# #?## #### | | ??????????????????????????# #?# # | | ?????????????????????????# ####?## | | ?????????????????????????# ##?????### | | ????????????????????????# ###????????## # | | ????????????????????????######???????????# ## | | ?????????????????????????????????????????# #? | | ?????????????????????????????????????????## ##? | | ??????????????????????????????????????????######?? | +----------------------------------------------------+ Best States ------------- Heat Dissipation 25 Energy Generation 10 Energy Capacity 250 Matter Stores 300 Matter Capacity 300 Sight Range 16 Terrain Scan Density 10 Evasion (%) 42 Recoil Reduction 2 Item Schematics ----------------- None Robot Schematics ------------------ None Fabricated ------------ Nothing Repaired ---------- Nothing Alien Tech Used ----------------- None Achievements -------------- None Challenges ------------ None Game ------ Seed ConstructAdvancedChainsaw Manual? 0 Play Time 00:06:12 Cumulative 102.4 hours Start 2025.05.19 @ 21:09:39 End 2025.05.19 @ 21:14:23 Sessions 1 Manual Loads 0 Difficulty Rogue Special Mode None Game No. 268 Rogue 268 Adventurer 0 Explorer 0 Win Type - Total 2 Types 2/0/0/0/0/0/0/0/0/0 Lore% 49 Gallery% 49 Achievement% 41 Wizard Run 0 Options --------- Layout 0 ASCII 0 Keyboard 0 Movement Numpad Keybinds 0 Fullscreen 2 Font 18/Terminus Map View 76x50 Zoom Use 0% Tactical HUD 1 Map Filters NONE Filters NONE Steam 1 RUN: 536291f8-1c05-4efc-af8b-6f96bf85f147